[Event "Titled Tuesday Blitz May 30 Early 2023"]
[White "Guevara Sanchez, Erick Marvin"]
[Black "Mirzanurov, Bulat"]
[WhiteFideId "6700136"]
[BlackFideId "4184521"]
[WhiteElo "2040"]
[BlackElo "2005"]
[Result "1-0"]
[Round "10"]
[TimeControl "180+2"]
[Date "2023.05.30"]
[WhiteClock "0:00:43"]
[BlackClock "0:00:00"]

1. e4 {[%clk 0:03:00]}  c5 {[%clk 0:02:59]} 2. Nf3 {[%clk 0:02:58]}  d6 {[%clk 0:02:57]} 3. d4 {[%clk 0:02:54]}  cxd4 {[%clk 0:02:58]} 4. Nxd4 {[%clk 0:02:55]}  Nf6 {[%clk 0:02:57]} 5. Nc3 {[%clk 0:02:55]}  a6 {[%clk 0:02:57]} 6. h3 {[%clk 0:02:51]}  e5 {[%clk 0:02:55]} 7. Nde2 {[%clk 0:02:48]}  h5 {[%clk 0:02:53]} 8. g3 {[%clk 0:02:46]}  Be7 {[%clk 0:02:45]} 9. Bg2 {[%clk 0:02:46]}  b5 {[%clk 0:02:45]} 10. a3 {[%clk 0:02:45]}  Be6 {[%clk 0:02:45]} 11. Be3 {[%clk 0:02:45]}  Nbd7 {[%clk 0:02:44]} 12. Qd2 {[%clk 0:02:45]}  Qc7 {[%clk 0:02:39]} 13. f4 {[%clk 0:02:23]}  Nb6 {[%clk 0:02:23]} 14. b3 {[%clk 0:02:20]}  Rc8 {[%clk 0:02:16]} 15. f5 {[%clk 0:02:06]}  Bd7 {[%clk 0:02:13]} 16. O-O {[%clk 0:02:00]}  Bc6 {[%clk 0:01:58]} 17. Rae1 {[%clk 0:01:44]}  Qb7 {[%clk 0:01:51]} 18. Qd3 {[%clk 0:01:43]}  Nbd7 {[%clk 0:01:45]} 19. Kh2 {[%clk 0:01:28]}  Nc5 {[%clk 0:01:10]} 20. Bxc5 {[%clk 0:01:28]}  dxc5 {[%clk 0:01:11]} 21. Nd5 {[%clk 0:01:28]}  Rd8 {[%clk 0:00:47]} 22. c4 {[%clk 0:01:28]}  O-O {[%clk 0:00:34]} 23. Rb1 {[%clk 0:01:27]}  Rd7 {[%clk 0:00:28]} 24. Bf3 {[%clk 0:01:27]}  Rfd8 {[%clk 0:00:27]} 25. g4 {[%clk 0:01:26]}  hxg4 {[%clk 0:00:20]} 26. hxg4 {[%clk 0:01:26]}  Bxd5 {[%clk 0:00:18]} 27. exd5 {[%clk 0:01:25]}  Nh7 {[%clk 0:00:15]} 28. Nc3 {[%clk 0:01:24]}  Ng5 {[%clk 0:00:14]} 29. Ne4 {[%clk 0:01:24]}  Nxe4 {[%clk 0:00:11]} 30. Bxe4 {[%clk 0:01:21]}  Bg5 {[%clk 0:00:07]} 31. Rh1 {[%clk 0:01:21]}  Bf4+ {[%clk 0:00:07]} 32. Kg2 {[%clk 0:01:21]}  Rd6 {[%clk 0:00:07]} 33. Rh3 {[%clk 0:01:13]}  Rh6 {[%clk 0:00:06]} 34. Rxh6 {[%clk 0:01:11]}  Bxh6 {[%clk 0:00:05]} 35. Qg3 {[%clk 0:00:58]}  bxc4 {[%clk 0:00:04]} 36. bxc4 {[%clk 0:00:58]}  Qe7 {[%clk 0:00:03]} 37. Rb6 {[%clk 0:00:54]}  Bf4 {[%clk 0:00:03]} 38. Qh3 {[%clk 0:00:53]}  Qg5 {[%clk 0:00:02]} 39. d6 {[%clk 0:00:50]}  Bc1 {[%clk 0:00:02]} 40. Qd3 {[%clk 0:00:47]}  Qxg4+ {[%clk 0:00:02]} 41. Kf2 {[%clk 0:00:46]}  Qf4+ {[%clk 0:00:02]} 42. Ke2 {[%clk 0:00:46]}  Qh2+ {[%clk 0:00:02]} 43. Kf1 {[%clk 0:00:45]}  Qf4+ {[%clk 0:00:01]} 44. Bf3 {[%clk 0:00:44]}  Qg3 {[%clk 0:00:00]} 45. Rb8 {[%clk 0:00:43]} 1-0


[Site "https://www.chess.com"]

[Event "Titled Tuesday Blitz May 30 Early 2023"]
[White "Nihal Sarin"]
[Black "Sjugirov, Sanan"]
[WhiteFideId "25092340"]
[BlackFideId "4189302"]
[WhiteElo "2689"]
[BlackElo "2569"]
[Result "1-0"]
[Round "11"]
[TimeControl "180+2"]
[Date "2023.05.30"]
[WhiteClock "0:00:15"]
[BlackClock "0:00:00"]

1. e4 {[%clk 0:03:00]}  c5 {[%clk 0:02:59]} 2. Nf3 {[%clk 0:03:00]}  d6 {[%clk 0:02:59]} 3. Bb5+ {[%clk 0:02:59]}  Bd7 {[%clk 0:02:58]} 4. Bxd7+ {[%clk 0:02:55]}  Qxd7 {[%clk 0:02:50]} 5. c4 {[%clk 0:02:55]}  Nf6 {[%clk 0:02:49]} 6. Nc3 {[%clk 0:02:55]}  Nc6 {[%clk 0:02:48]} 7. O-O {[%clk 0:02:55]}  e6 {[%clk 0:02:48]} 8. d4 {[%clk 0:02:55]}  cxd4 {[%clk 0:02:49]} 9. Nxd4 {[%clk 0:02:56]}  Be7 {[%clk 0:02:49]} 10. b3 {[%clk 0:02:56]}  O-O {[%clk 0:02:49]} 11. Bb2 {[%clk 0:02:57]}  Rac8 {[%clk 0:02:49]} 12. Re1 {[%clk 0:02:56]}  a6 {[%clk 0:02:48]} 13. Na4 {[%clk 0:02:45]}  Qc7 {[%clk 0:02:46]} 14. Rc1 {[%clk 0:02:44]}  Rfd8 {[%clk 0:02:45]} 15. h3 {[%clk 0:02:38]}  h6 {[%clk 0:02:43]} 16. Qd2 {[%clk 0:02:35]}  Nd7 {[%clk 0:02:34]} 17. Nxc6 {[%clk 0:02:31]}  Qxc6 {[%clk 0:02:33]} 18. Nc3 {[%clk 0:02:31]}  Bg5 {[%clk 0:02:24]} 19. f4 {[%clk 0:02:29]}  Bf6 {[%clk 0:02:25]} 20. Kh2 {[%clk 0:02:24]}  Nc5 {[%clk 0:02:19]} 21. Qe3 {[%clk 0:02:20]}  Bxc3 {[%clk 0:01:44]} 22. Qxc3 {[%clk 0:02:15]}  e5 {[%clk 0:01:32]} 23. Rcd1 {[%clk 0:01:21]}  f6 {[%clk 0:01:27]} 24. Qf3 {[%clk 0:01:20]}  b5 {[%clk 0:01:23]} 25. cxb5 {[%clk 0:01:21]}  axb5 {[%clk 0:01:22]} 26. Rd5 {[%clk 0:01:20]}  Ne6 {[%clk 0:01:20]} 27. Bc1 {[%clk 0:01:01]}  Qa6 {[%clk 0:01:08]} 28. fxe5 {[%clk 0:00:30]}  dxe5 {[%clk 0:01:06]} 29. Bxh6 {[%clk 0:00:31]}  Qc6 {[%clk 0:00:08]} 30. Be3 {[%clk 0:00:24]}  Qe8 {[%clk 0:00:05]} 31. Red1 {[%clk 0:00:23]}  Ra8 {[%clk 0:00:05]} 32. Qg4 {[%clk 0:00:19]}  Rxd5 {[%clk 0:00:02]} 33. exd5 {[%clk 0:00:20]}  Nf8 {[%clk 0:00:00]} 34. Rc1 {[%clk 0:00:15]} 1-0


[Site "https://www.chess.com"]

[Event "Titled Tuesday Blitz May 30 Early 2023"]
[White "Naroditsky, Daniel"]
[Black "Dubov, Daniil"]
[WhiteFideId "2026961"]
[BlackFideId "24126055"]
[WhiteElo "2633"]
[BlackElo "2793"]
[Result "1/2-1/2"]
[Round "11"]
[TimeControl "180+2"]
[Date "2023.05.30"]
[WhiteClock "0:00:24"]
[BlackClock "0:00:14"]

1. e4 {[%clk 0:03:00]}  c5 {[%clk 0:02:59]} 2. c3 {[%clk 0:02:58]}  Nc6 {[%clk 0:02:54]} 3. Nf3 {[%clk 0:02:56]}  d5 {[%clk 0:02:53]} 4. exd5 {[%clk 0:02:57]}  Qxd5 {[%clk 0:02:54]} 5. d4 {[%clk 0:02:58]}  cxd4 {[%clk 0:02:54]} 6. cxd4 {[%clk 0:02:58]}  e5 {[%clk 0:02:55]} 7. Nc3 {[%clk 0:02:57]}  Bb4 {[%clk 0:02:55]} 8. Bd2 {[%clk 0:02:58]}  Bxc3 {[%clk 0:02:56]} 9. Bxc3 {[%clk 0:02:59]}  e4 {[%clk 0:02:56]} 10. Ne5 {[%clk 0:02:59]}  Nxe5 {[%clk 0:02:56]} 11. dxe5 {[%clk 0:03:00]}  Ne7 {[%clk 0:02:56]} 12. Qa4+ {[%clk 0:02:59]}  Bd7 {[%clk 0:02:54]} 13. Qa3 {[%clk 0:02:59]}  Qe6 {[%clk 0:02:46]} 14. Rd1 {[%clk 0:02:56]}  O-O {[%clk 0:02:43]} 15. Be2 {[%clk 0:02:29]}  Bc6 {[%clk 0:02:22]} 16. Qd6 {[%clk 0:02:10]}  Nd5 {[%clk 0:02:13]} 17. Qxe6 {[%clk 0:02:06]}  fxe6 {[%clk 0:02:13]} 18. Bc4 {[%clk 0:01:52]}  e3 {[%clk 0:01:54]} 19. O-O {[%clk 0:01:26]}  exf2+ {[%clk 0:01:46]} 20. Rxf2 {[%clk 0:01:26]}  Rxf2 {[%clk 0:01:46]} 21. Kxf2 {[%clk 0:01:27]}  Rf8+ {[%clk 0:01:41]} 22. Kg3 {[%clk 0:01:23]}  Rf5 {[%clk 0:01:35]} 23. Bxd5 {[%clk 0:01:21]}  Bxd5 {[%clk 0:01:35]} 24. h4 {[%clk 0:01:18]}  h5 {[%clk 0:01:02]} 25. a3 {[%clk 0:01:11]}  g5 {[%clk 0:01:00]} 26. Rd2 {[%clk 0:01:06]}  Kh7 {[%clk 0:00:50]} 27. hxg5 {[%clk 0:00:59]}  Rxg5+ {[%clk 0:00:48]} 28. Kh3 {[%clk 0:00:58]}  Kg6 {[%clk 0:00:38]} 29. Rf2 {[%clk 0:00:56]}  Rg4 {[%clk 0:00:37]} 30. Rf6+ {[%clk 0:00:50]}  Kg7 {[%clk 0:00:37]} 31. Rf2 {[%clk 0:00:45]}  b6 {[%clk 0:00:36]} 32. Bb4 {[%clk 0:00:42]}  Re4 {[%clk 0:00:33]} 33. Bd2 {[%clk 0:00:39]}  a5 {[%clk 0:00:29]} 34. Bc3 {[%clk 0:00:35]}  Rg4 {[%clk 0:00:25]} 35. Bd2 {[%clk 0:00:32]}  Rd4 {[%clk 0:00:23]} 36. Bc3 {[%clk 0:00:31]}  Re4 {[%clk 0:00:23]} 37. Bd2 {[%clk 0:00:32]}  Bc4 {[%clk 0:00:20]} 38. Rf4 {[%clk 0:00:29]}  Rxf4 {[%clk 0:00:16]} 39. Bxf4 {[%clk 0:00:29]}  Kg6 {[%clk 0:00:14]} 40. g4 {[%clk 0:00:24]} 1/2-1/2


[Site "https://www.chess.com"]

[Event "Titled Tuesday Blitz May 30 Early 2023"]
[White "Kravtsiv, Martyn"]
[Black "Lazavik, Denis"]
[WhiteFideId "14113147"]
[BlackFideId "13515110"]
[WhiteElo "2695"]
[BlackElo "2560"]
[Result "0-1"]
[Round "11"]
[TimeControl "180+2"]
[Date "2023.05.30"]
[WhiteClock "0:00:04"]
[BlackClock "0:00:10"]

1. e4 {[%clk 0:03:00]}  c5 {[%clk 0:03:00]} 2. Nf3 {[%clk 0:03:00]}  e6 {[%clk 0:03:01]} 3. d4 {[%clk 0:03:00]}  cxd4 {[%clk 0:03:01]} 4. Nxd4 {[%clk 0:03:00]}  Nc6 {[%clk 0:03:02]} 5. Nc3 {[%clk 0:03:00]}  Qc7 {[%clk 0:03:03]} 6. Be2 {[%clk 0:03:00]}  Nf6 {[%clk 0:03:03]} 7. Be3 {[%clk 0:02:59]}  a6 {[%clk 0:03:03]} 8. O-O {[%clk 0:02:58]}  Be7 {[%clk 0:03:03]} 9. f4 {[%clk 0:02:58]}  d6 {[%clk 0:03:03]} 10. Kh1 {[%clk 0:02:54]}  O-O {[%clk 0:03:03]} 11. Qe1 {[%clk 0:02:54]}  Nxd4 {[%clk 0:03:03]} 12. Bxd4 {[%clk 0:02:55]}  b5 {[%clk 0:03:03]} 13. Qg3 {[%clk 0:02:55]}  Bb7 {[%clk 0:03:02]} 14. a3 {[%clk 0:02:55]}  Rad8 {[%clk 0:02:58]} 15. Rae1 {[%clk 0:02:55]}  Ne8 {[%clk 0:02:58]} 16. Qf2 {[%clk 0:02:42]}  Rd7 {[%clk 0:02:55]} 17. Bd3 {[%clk 0:02:35]}  Qd8 {[%clk 0:02:37]} 18. Bb6 {[%clk 0:02:20]}  Qb8 {[%clk 0:02:36]} 19. Bd4 {[%clk 0:02:14]}  Bc6 {[%clk 0:02:32]} 20. Re3 {[%clk 0:02:13]}  Bf6 {[%clk 0:02:29]} 21. Rh3 {[%clk 0:02:11]}  Bxd4 {[%clk 0:02:25]} 22. Qxd4 {[%clk 0:02:12]}  Qa7 {[%clk 0:02:20]} 23. Qxa7 {[%clk 0:01:50]}  Rxa7 {[%clk 0:02:21]} 24. e5 {[%clk 0:01:50]}  h6 {[%clk 0:02:12]} 25. Be4 {[%clk 0:01:49]}  Rc7 {[%clk 0:02:07]} 26. Rf2 {[%clk 0:01:36]}  Bxe4 {[%clk 0:01:27]} 27. Nxe4 {[%clk 0:01:36]}  d5 {[%clk 0:01:27]} 28. Nc3 {[%clk 0:01:36]}  Rc4 {[%clk 0:01:17]} 29. b3 {[%clk 0:01:35]}  Rc5 {[%clk 0:01:16]} 30. Na2 {[%clk 0:01:33]}  a5 {[%clk 0:01:09]} 31. Rc3 {[%clk 0:01:32]}  Rxc3 {[%clk 0:01:09]} 32. Nxc3 {[%clk 0:01:32]}  Nc7 {[%clk 0:01:10]} 33. Ne2 {[%clk 0:01:33]}  f6 {[%clk 0:01:06]} 34. Kg1 {[%clk 0:01:29]}  Kf7 {[%clk 0:00:51]} 35. Nd4 {[%clk 0:01:28]}  Ra8 {[%clk 0:00:51]} 36. f5 {[%clk 0:01:18]}  b4 {[%clk 0:00:34]} 37. a4 {[%clk 0:01:09]}  exf5 {[%clk 0:00:28]} 38. Rxf5 {[%clk 0:01:08]}  Ne6 {[%clk 0:00:28]} 39. Nb5 {[%clk 0:00:55]}  Kg6 {[%clk 0:00:19]} 40. g4 {[%clk 0:00:55]}  Rc8 {[%clk 0:00:19]} 41. exf6 {[%clk 0:00:50]}  gxf6 {[%clk 0:00:20]} 42. h4 {[%clk 0:00:45]}  Rxc2 {[%clk 0:00:18]} 43. Rxd5 {[%clk 0:00:45]}  Nf4 {[%clk 0:00:18]} 44. h5+ {[%clk 0:00:44]}  Kf7 {[%clk 0:00:18]} 45. Rd7+ {[%clk 0:00:35]}  Ke6 {[%clk 0:00:18]} 46. Rh7 {[%clk 0:00:32]}  Ne2+ {[%clk 0:00:12]} 47. Kf1 {[%clk 0:00:24]}  Rb2 {[%clk 0:00:10]} 48. Rxh6 {[%clk 0:00:23]}  Ng3+ {[%clk 0:00:10]} 49. Ke1 {[%clk 0:00:23]}  Ne4 {[%clk 0:00:11]} 50. Rh8 {[%clk 0:00:21]}  Ke5 {[%clk 0:00:11]} 51. h6 {[%clk 0:00:19]}  Kf4 {[%clk 0:00:10]} 52. Re8 {[%clk 0:00:19]}  Rh2 {[%clk 0:00:09]} 53. Nc7 {[%clk 0:00:11]}  Rxh6 {[%clk 0:00:08]} 54. Ke2 {[%clk 0:00:11]}  Rh2+ {[%clk 0:00:07]} 55. Kd3 {[%clk 0:00:09]}  Rd2+ {[%clk 0:00:07]} 56. Kc4 {[%clk 0:00:10]}  Nd6+ {[%clk 0:00:06]} 57. Kc5 {[%clk 0:00:07]}  Nxe8 {[%clk 0:00:07]} 58. Nxe8 {[%clk 0:00:08]}  Kg5 {[%clk 0:00:07]} 59. Kb6 {[%clk 0:00:07]}  Rd8 {[%clk 0:00:07]} 60. Nxf6 {[%clk 0:00:07]}  Kxf6 {[%clk 0:00:07]} 61. Kxa5 {[%clk 0:00:07]}  Rb8 {[%clk 0:00:07]} 62. Ka6 {[%clk 0:00:07]}  Ke5 {[%clk 0:00:07]} 63. g5 {[%clk 0:00:07]}  Kd4 {[%clk 0:00:07]} 64. a5 {[%clk 0:00:07]}  Kc3 {[%clk 0:00:08]} 65. Ka7 {[%clk 0:00:07]}  Rg8 {[%clk 0:00:08]} 66. a6 {[%clk 0:00:07]}  Rxg5 {[%clk 0:00:09]} 67. Kb7 {[%clk 0:00:04]}  Ra5 {[%clk 0:00:10]} 0-1


[Site "https://www.chess.com"]

[Event "Titled Tuesday Blitz May 30 Early 2023"]
[White "Le, Tuan Minh"]
[Black "Zhigalko, Sergei"]
[WhiteFideId "12401153"]
[BlackFideId "13502956"]
[WhiteElo "2566"]
[BlackElo "2626"]
[Result "1-0"]
[Round "11"]
[TimeControl "180+2"]
[Date "2023.05.30"]
[WhiteClock "0:00:02"]
[BlackClock "0:00:00"]

1. d4 {[%clk 0:03:00]}  Nf6 {[%clk 0:03:00]} 2. Nf3 {[%clk 0:02:55]}  e6 {[%clk 0:03:00]} 3. c4 {[%clk 0:02:54]}  b6 {[%clk 0:03:00]} 4. a3 {[%clk 0:02:54]}  Ba6 {[%clk 0:02:59]} 5. Qc2 {[%clk 0:02:51]}  Bb7 {[%clk 0:03:00]} 6. Nc3 {[%clk 0:02:51]}  c5 {[%clk 0:03:00]} 7. e4 {[%clk 0:02:49]}  cxd4 {[%clk 0:03:00]} 8. Nxd4 {[%clk 0:02:50]}  Nc6 {[%clk 0:03:01]} 9. Nxc6 {[%clk 0:02:50]}  Bxc6 {[%clk 0:03:02]} 10. Bf4 {[%clk 0:02:50]}  Nh5 {[%clk 0:02:59]} 11. Be3 {[%clk 0:02:49]}  Bc5 {[%clk 0:02:56]} 12. Qd2 {[%clk 0:02:39]}  Qc7 {[%clk 0:02:45]} 13. Be2 {[%clk 0:02:34]}  Bxe3 {[%clk 0:02:43]} 14. Qxe3 {[%clk 0:02:35]}  Nf4 {[%clk 0:02:43]} 15. O-O {[%clk 0:02:31]}  O-O {[%clk 0:02:39]} 16. Rfe1 {[%clk 0:02:06]}  Nxe2+ {[%clk 0:02:38]} 17. Qxe2 {[%clk 0:02:04]}  f5 {[%clk 0:02:39]} 18. e5 {[%clk 0:02:02]}  f4 {[%clk 0:02:29]} 19. f3 {[%clk 0:02:02]}  Rf5 {[%clk 0:02:27]} 20. Rad1 {[%clk 0:02:01]}  Rc8 {[%clk 0:02:21]} 21. Rd4 {[%clk 0:01:56]}  Qd8 {[%clk 0:02:15]} 22. b4 {[%clk 0:01:44]}  Rc7 {[%clk 0:02:01]} 23. Qd2 {[%clk 0:01:19]}  Qg5 {[%clk 0:01:40]} 24. Ne4 {[%clk 0:01:18]}  Qh4 {[%clk 0:01:20]} 25. Nd6 {[%clk 0:01:01]}  Rh5 {[%clk 0:01:16]} 26. h3 {[%clk 0:00:44]}  Rg5 {[%clk 0:00:46]} 27. Rxf4 {[%clk 0:00:38]}  Qg3 {[%clk 0:00:47]} 28. h4 {[%clk 0:00:20]}  Rg6 {[%clk 0:00:38]} 29. Re2 {[%clk 0:00:14]}  a6 {[%clk 0:00:22]} 30. Qe3 {[%clk 0:00:14]}  b5 {[%clk 0:00:07]} 31. c5 {[%clk 0:00:14]}  Bd5 {[%clk 0:00:08]} 32. Rf2 {[%clk 0:00:11]}  Ra7 {[%clk 0:00:07]} 33. Ne4 {[%clk 0:00:07]}  Bxe4 {[%clk 0:00:05]} 34. Rxe4 {[%clk 0:00:05]}  Ra8 {[%clk 0:00:03]} 35. Qd3 {[%clk 0:00:03]}  Rd8 {[%clk 0:00:01]} 36. Rd4 {[%clk 0:00:04]}  Rf8 {[%clk 0:00:01]} 37. Rxd7 {[%clk 0:00:02]}  Qxe5 {[%clk 0:00:02]} 38. Qd1 {[%clk 0:00:02]}  Qf4 {[%clk 0:00:00]} 39. c6 {[%clk 0:00:02]} 1-0


[Site "https://www.chess.com"]

[Event "Titled Tuesday Blitz May 30 Early 2023"]
[White "Svane, Rasmus"]
[Black "Hayrapetyan, Hovik"]
[WhiteFideId "4657101"]
[BlackFideId "13302639"]
[WhiteElo "2601"]
[BlackElo "2348"]
[Result "1-0"]
[Round "11"]
[TimeControl "180+2"]
[Date "2023.05.30"]
[WhiteClock "0:00:13"]
[BlackClock "0:00:03"]

1. Nf3 {[%clk 0:02:58]}  d5 {[%clk 0:02:59]} 2. g3 {[%clk 0:02:58]}  Nf6 {[%clk 0:02:59]} 3. Bg2 {[%clk 0:02:57]}  e6 {[%clk 0:03:00]} 4. O-O {[%clk 0:02:58]}  Be7 {[%clk 0:03:00]} 5. c4 {[%clk 0:02:58]}  O-O {[%clk 0:03:01]} 6. b3 {[%clk 0:02:59]}  d4 {[%clk 0:03:00]} 7. e3 {[%clk 0:02:59]}  c5 {[%clk 0:03:01]} 8. Ne5 {[%clk 0:02:58]}  Nfd7 {[%clk 0:02:54]} 9. exd4 {[%clk 0:02:57]}  cxd4 {[%clk 0:02:53]} 10. Nxd7 {[%clk 0:02:57]}  Nxd7 {[%clk 0:02:52]} 11. d3 {[%clk 0:02:58]}  a5 {[%clk 0:02:46]} 12. Ba3 {[%clk 0:02:57]}  Nc5 {[%clk 0:02:42]} 13. Qe2 {[%clk 0:02:58]}  Qc7 {[%clk 0:02:27]} 14. Nd2 {[%clk 0:02:56]}  Rb8 {[%clk 0:02:14]} 15. f4 {[%clk 0:02:40]}  b6 {[%clk 0:02:12]} 16. Rae1 {[%clk 0:02:39]}  Bb7 {[%clk 0:02:07]} 17. Bxb7 {[%clk 0:02:37]}  Rxb7 {[%clk 0:02:00]} 18. f5 {[%clk 0:02:24]}  Bg5 {[%clk 0:01:38]} 19. fxe6 {[%clk 0:02:15]}  Be3+ {[%clk 0:01:37]} 20. Kg2 {[%clk 0:02:15]}  Qc6+ {[%clk 0:01:36]} 21. Qf3 {[%clk 0:01:12]}  Qxf3+ {[%clk 0:01:35]} 22. Nxf3 {[%clk 0:01:12]}  fxe6 {[%clk 0:01:26]} 23. Ne5 {[%clk 0:01:12]}  Rf5 {[%clk 0:01:16]} 24. Bxc5 {[%clk 0:00:54]}  bxc5 {[%clk 0:01:14]} 25. Ng4 {[%clk 0:00:55]}  Rxf1 {[%clk 0:01:06]} 26. Kxf1 {[%clk 0:00:54]}  a4 {[%clk 0:00:48]} 27. bxa4 {[%clk 0:00:54]}  Rb4 {[%clk 0:00:40]} 28. Nxe3 {[%clk 0:00:52]}  dxe3 {[%clk 0:00:41]} 29. Rxe3 {[%clk 0:00:53]}  Rxa4 {[%clk 0:00:42]} 30. Rxe6 {[%clk 0:00:46]}  Rxa2 {[%clk 0:00:42]} 31. Re5 {[%clk 0:00:40]}  Rd2 {[%clk 0:00:29]} 32. Rd5 {[%clk 0:00:39]}  Kf7 {[%clk 0:00:29]} 33. h4 {[%clk 0:00:27]}  Ke6 {[%clk 0:00:28]} 34. h5 {[%clk 0:00:28]}  h6 {[%clk 0:00:23]} 35. g4 {[%clk 0:00:28]}  Kf6 {[%clk 0:00:21]} 36. Ke1 {[%clk 0:00:22]}  Rg2 {[%clk 0:00:21]} 37. Rf5+ {[%clk 0:00:20]}  Ke6 {[%clk 0:00:21]} 38. Rxc5 {[%clk 0:00:21]}  Rxg4 {[%clk 0:00:21]} 39. Ke2 {[%clk 0:00:20]}  Kd6 {[%clk 0:00:17]} 40. Rd5+ {[%clk 0:00:20]}  Ke6 {[%clk 0:00:17]} 41. Kf3 {[%clk 0:00:21]}  Rh4 {[%clk 0:00:17]} 42. Ke3 {[%clk 0:00:21]}  Rg4 {[%clk 0:00:14]} 43. d4 {[%clk 0:00:16]}  g6 {[%clk 0:00:13]} 44. hxg6 {[%clk 0:00:15]}  Rxg6 {[%clk 0:00:14]} 45. Re5+ {[%clk 0:00:14]}  Kd6 {[%clk 0:00:12]} 46. c5+ {[%clk 0:00:13]}  Kc6 {[%clk 0:00:12]} 47. Kd3 {[%clk 0:00:14]}  Rg1 {[%clk 0:00:07]} 48. Re6+ {[%clk 0:00:13]}  Kb5 {[%clk 0:00:03]} 49. Rb6+ {[%clk 0:00:13]} 1-0


[Site "https://www.chess.com"]

[Event "Titled Tuesday Blitz May 30 Early 2023"]
[White "Atoufi, Pedram"]
[Black "Kuzubov, Yuriy"]
[WhiteFideId "12501654"]
[BlackFideId "14112906"]
[WhiteElo "2228"]
[BlackElo "2496"]
[Result "0-1"]
[Round "11"]
[TimeControl "180+2"]
[Date "2023.05.30"]
[WhiteClock "0:00:10"]
[BlackClock "0:00:22"]

1. e4 {[%clk 0:03:00]}  c5 {[%clk 0:02:59]} 2. Nc3 {[%clk 0:02:59]}  d6 {[%clk 0:02:59]} 3. Nf3 {[%clk 0:02:57]}  Nf6 {[%clk 0:02:56]} 4. e5 {[%clk 0:02:51]}  dxe5 {[%clk 0:02:55]} 5. Nxe5 {[%clk 0:02:51]}  e6 {[%clk 0:02:51]} 6. Be2 {[%clk 0:02:49]}  Be7 {[%clk 0:02:49]} 7. O-O {[%clk 0:02:48]}  O-O {[%clk 0:02:48]} 8. d3 {[%clk 0:02:48]}  Nbd7 {[%clk 0:02:45]} 9. Bf4 {[%clk 0:02:40]}  Nb6 {[%clk 0:02:31]} 10. Qd2 {[%clk 0:02:23]}  Nfd5 {[%clk 0:02:28]} 11. Be3 {[%clk 0:02:14]}  Nxe3 {[%clk 0:02:19]} 12. fxe3 {[%clk 0:02:08]}  f6 {[%clk 0:01:52]} 13. Nf3 {[%clk 0:02:06]}  e5 {[%clk 0:01:53]} 14. e4 {[%clk 0:02:03]}  Be6 {[%clk 0:01:42]} 15. b3 {[%clk 0:01:54]}  Rf7 {[%clk 0:01:39]} 16. a4 {[%clk 0:01:45]}  Bf8 {[%clk 0:01:35]} 17. a5 {[%clk 0:01:45]}  Nc8 {[%clk 0:01:35]} 18. Nd5 {[%clk 0:01:43]}  Ne7 {[%clk 0:01:25]} 19. Nxe7+ {[%clk 0:01:32]}  Rxe7 {[%clk 0:01:22]} 20. Qe3 {[%clk 0:01:27]}  Rc7 {[%clk 0:01:14]} 21. Ra4 {[%clk 0:01:20]}  Rc6 {[%clk 0:01:10]} 22. Nd2 {[%clk 0:01:10]}  Ra6 {[%clk 0:01:04]} 23. h3 {[%clk 0:01:04]}  Rxa5 {[%clk 0:01:01]} 24. Rxa5 {[%clk 0:01:04]}  Qxa5 {[%clk 0:01:02]} 25. Nc4 {[%clk 0:01:01]}  Qc3 {[%clk 0:00:58]} 26. Qd2 {[%clk 0:00:57]}  Qxd2 {[%clk 0:00:57]} 27. Nxd2 {[%clk 0:00:58]}  a6 {[%clk 0:00:52]} 28. Kf2 {[%clk 0:00:56]}  Be7 {[%clk 0:00:50]} 29. Ke3 {[%clk 0:00:54]}  g6 {[%clk 0:00:48]} 30. Bg4 {[%clk 0:00:44]}  Bf7 {[%clk 0:00:48]} 31. Nc4 {[%clk 0:00:41]}  h5 {[%clk 0:00:39]} 32. Bd7 {[%clk 0:00:35]}  Rd8 {[%clk 0:00:39]} 33. Nb6 {[%clk 0:00:33]}  c4 {[%clk 0:00:34]} 34. bxc4 {[%clk 0:00:31]}  Bc5+ {[%clk 0:00:34]} 35. Ke2 {[%clk 0:00:29]}  Bxb6 {[%clk 0:00:34]} 36. Rxf6 {[%clk 0:00:27]}  Bd4 {[%clk 0:00:32]} 37. Ba4 {[%clk 0:00:23]}  Kg7 {[%clk 0:00:26]} 38. Rf1 {[%clk 0:00:21]}  Be6 {[%clk 0:00:25]} 39. Rb1 {[%clk 0:00:20]}  Bc8 {[%clk 0:00:22]} 40. Rf1 {[%clk 0:00:19]}  Rf8 {[%clk 0:00:20]} 41. Rxf8 {[%clk 0:00:18]}  Kxf8 {[%clk 0:00:21]} 42. Kd2 {[%clk 0:00:18]}  Ke7 {[%clk 0:00:21]} 43. c3 {[%clk 0:00:18]}  Bc5 {[%clk 0:00:22]} 44. Bd1 {[%clk 0:00:17]}  Kf6 {[%clk 0:00:22]} 45. Ba4 {[%clk 0:00:17]}  Kg5 {[%clk 0:00:21]} 46. Be8 {[%clk 0:00:16]}  Be6 {[%clk 0:00:20]} 47. Ke2 {[%clk 0:00:15]}  b6 {[%clk 0:00:20]} 48. Bc6 {[%clk 0:00:14]}  a5 {[%clk 0:00:20]} 49. Kf3 {[%clk 0:00:14]}  Kf6 {[%clk 0:00:20]} 50. Be8 {[%clk 0:00:14]}  h4 {[%clk 0:00:18]} 51. Bc6 {[%clk 0:00:13]}  Ke7 {[%clk 0:00:18]} 52. Bb5 {[%clk 0:00:12]}  Bd7 {[%clk 0:00:19]} 53. Bxd7 {[%clk 0:00:12]}  Kxd7 {[%clk 0:00:19]} 54. d4 {[%clk 0:00:12]}  exd4 {[%clk 0:00:19]} 55. cxd4 {[%clk 0:00:12]}  Bxd4 {[%clk 0:00:20]} 56. Ke2 {[%clk 0:00:12]}  a4 {[%clk 0:00:20]} 57. Kd3 {[%clk 0:00:12]}  Bc5 {[%clk 0:00:21]} 58. Kc3 {[%clk 0:00:11]}  a3 {[%clk 0:00:21]} 59. Kb3 {[%clk 0:00:12]}  Ke6 {[%clk 0:00:21]} 60. Ka2 {[%clk 0:00:12]}  Ke5 {[%clk 0:00:22]} 61. Kb1 {[%clk 0:00:10]}  Kxe4 {[%clk 0:00:22]} 0-1


[Site "https://www.chess.com"]

[Event "Titled Tuesday Blitz May 30 Early 2023"]
[White "Narayanan.S.L"]
[Black "Mahdavi, Reza"]
[WhiteFideId "5058422"]
[BlackFideId "12595926"]
[WhiteElo "2563"]
[BlackElo "2352"]
[Result "1-0"]
[Round "11"]
[TimeControl "180+2"]
[Date "2023.05.30"]
[WhiteClock "0:02:22"]
[BlackClock "0:01:02"]

1. c4 {[%clk 0:03:00]}  e5 {[%clk 0:03:00]} 2. Nf3 {[%clk 0:02:59]}  e4 {[%clk 0:02:53]} 3. Nd4 {[%clk 0:02:59]}  Nc6 {[%clk 0:02:52]} 4. e3 {[%clk 0:02:59]}  Nf6 {[%clk 0:02:50]} 5. Nc3 {[%clk 0:02:59]}  Ne5 {[%clk 0:02:50]} 6. f4 {[%clk 0:02:57]}  Nd3+ {[%clk 0:02:51]} 7. Bxd3 {[%clk 0:02:56]}  exd3 {[%clk 0:02:52]} 8. O-O {[%clk 0:02:55]}  d5 {[%clk 0:02:52]} 9. cxd5 {[%clk 0:02:53]}  Nxd5 {[%clk 0:02:53]} 10. Qb3 {[%clk 0:02:52]}  Nb6 {[%clk 0:02:47]} 11. a4 {[%clk 0:02:48]}  c5 {[%clk 0:02:45]} 12. Nf3 {[%clk 0:02:48]}  c4 {[%clk 0:01:59]} 13. Qa2 {[%clk 0:02:47]}  a5 {[%clk 0:01:58]} 14. Ne5 {[%clk 0:02:46]}  Qc7 {[%clk 0:01:39]} 15. Nb5 {[%clk 0:02:39]}  Qc5 {[%clk 0:01:36]} 16. b3 {[%clk 0:02:38]}  Be6 {[%clk 0:01:21]} 17. Ba3 {[%clk 0:02:38]}  Qc8 {[%clk 0:01:22]} 18. Bxf8 {[%clk 0:02:35]}  Kxf8 {[%clk 0:01:22]} 19. Qa3+ {[%clk 0:02:34]}  Kg8 {[%clk 0:01:22]} 20. Rac1 {[%clk 0:02:33]}  f6 {[%clk 0:01:21]} 21. Nxc4 {[%clk 0:02:32]}  Nxc4 {[%clk 0:01:21]} 22. bxc4 {[%clk 0:02:33]}  Qd7 {[%clk 0:01:21]} 23. Nd4 {[%clk 0:02:32]}  Bf5 {[%clk 0:01:19]} 24. c5 {[%clk 0:02:30]}  Be4 {[%clk 0:01:18]} 25. Qb3+ {[%clk 0:02:28]}  Bd5 {[%clk 0:01:19]} 26. Qxd3 {[%clk 0:02:26]}  Qxa4 {[%clk 0:01:19]} 27. Nb5 {[%clk 0:02:23]}  Qe4 {[%clk 0:01:17]} 28. Qxe4 {[%clk 0:02:22]}  Bxe4 {[%clk 0:01:18]} 29. Nd6 {[%clk 0:02:22]}  Bc6 {[%clk 0:01:18]} 30. e4 {[%clk 0:02:22]}  h6 {[%clk 0:01:13]} 31. d4 {[%clk 0:02:23]}  Ra7 {[%clk 0:01:04]} 32. d5 {[%clk 0:02:22]}  Bd7 {[%clk 0:01:02]} 33. e5 {[%clk 0:02:22]} 1-0


[Site "https://www.chess.com"]